fUSD/lending_fUSD_20251012
["ID","MTS","AMOUNT","RATE_DAILY","PERIOD"]
[390976130,1760255441664,-627.98916728,0.00014899,2]
[390976131,1760255441679,-3528.21073274,0.00014899,2]
[390976132,1760255441696,-491.42396994,0.00014899,2]
[390976133,1760255441713,-473.93335833,0.00014899,2]
[390976134,1760255441730,-330.97926479,0.00014899,2]
[390976135,1760255441746,-3856.18588552,0.00014899,2]
[390976136,1760255441764,-9328.56726735,0.00014899,2]
[390976137,1760255441782,-3587.30455759,0.00014899,2]
[390976138,1760255441800,-11085.05870944,0.00014899,2]
[390976139,1760255441816,-154.5251749,0.00014899,2]
[390976140,1760255441834,-14709.99087461,0.00014899,2]
[390976141,1760255441853,-3357.34075522,0.00014899,2]
[390976142,1760255441871,-285.35032063,0.00014899,2]
[390976143,1760255441888,-1635.59993922,0.00014899,2]
[390976144,1760255441907,-3810.74823059,0.00014899,2]
[390976149,1760255445567,-250.0,0.000139,2]
[390976150,1760255445584,-3489.98276,0.0001479,2]
[390976151,1760255445601,-109804.64196923,0.00014899,2]
[390976152,1760255445619,-3607.69821498,0.000149,2]
[390976153,1760255445636,-2000.0,0.000149,2]
[390976154,1760255445652,-2043.12,0.000149,2]
[390976155,1760255445668,-3002.6014944,0.000149,2]
[390976156,1760255445683,-202.97551247,0.000149,2]
[390976157,1760255445698,-2003.7,0.000149,2]
[390976158,1760255445714,-175.14900065,0.000149,2]
[390976159,1760255445729,-176.57665,0.000149,2]
[390976160,1760255445744,-170.2923466,0.000149,2]
[390976161,1760255445766,-188.87338486,0.000149,2]
[390976162,1760255445785,-942.45354732,0.000149,2]
[390976163,1760255445802,-215.36320489,0.000149,2]
[390976164,1760255445820,-168.03,0.000149,2]
[390976165,1760255445838,-799.40918988,0.000149,2]
[390976166,1760255445855,-159.32034044,0.000149,2]
[390976167,1760255445873,-211.66490023,0.000149,2]
[390976168,1760255445890,-511.0,0.000149,2]
[390976169,1760255445907,-5569.23115619,0.000149,2]
[390976170,1760255445923,-5569.23115603,0.000149,2]
[390976171,1760255445940,-5569.23115603,0.000149,2]
[390976172,1760255445959,-500.0,0.000149,2]
[390976173,1760255445977,-5569.23115603,0.000149,2]
[390976174,1760255445992,-5569.23115603,0.000149,2]
[390976175,1760255446009,-5569.23115603,0.000149,2]
[390976177,1760255446026,-5569.23115603,0.000149,2]
[390976179,1760255446042,-5569.23115603,0.000149,2]
[390976180,1760255446058,-5569.23115603,0.000149,2]
[390976181,1760255446074,-5569.23115603,0.000149,2]
[390976182,1760255446090,-5569.23115603,0.000149,2]
[390976183,1760255446106,-5569.23115603,0.000149,2]
[390976186,1760255446123,-5569.23115603,0.000149,2]
[390976188,1760255446138,-5569.23115603,0.000149,2]
[390976191,1760255446153,-2323.33310153,0.000149,2]
[390976192,1760255446176,-1734.1324,0.000149,2]
[390976193,1760255446194,-1511.7656545,0.000149,2]
[390976194,1760255446209,-2048.0,0.00014905,2]
[390976195,1760255446225,-1266.0,0.00014905,2]
[390976196,1760255446241,-749.0,0.00014905,2]
[390976197,1760255446257,-3405.0,0.00014905,2]
[390976198,1760255446273,-1309.0,0.00014905,2]
[390976199,1760255446288,-604.0,0.00014905,2]
[390976200,1760255446305,-571.0,0.00014905,2]
[390976201,1760255446320,-1587.0,0.00014905,2]
[390976202,1760255446335,-816.0,0.00014905,2]
[390976203,1760255446350,-556.0,0.00014905,2]
[390976204,1760255446364,-3165.45695794,0.00014905,2]
[390976205,1760255446388,-466.81370507,0.00014905,2]
[390976216,1760255596158,2000.0,0.00025758,120]
[390976217,1760255596226,2000.0,0.00027083,120]
[390976218,1760255604243,500.0,0.00025676,120]
[390976219,1760255604313,500.0,0.00026532,120]
[390976220,1760255604381,500.0,0.00027388,120]
[390976224,1760255697924,3379.4678128,0.00027397,120]
[390976225,1760255828568,445.0,0.00027397,120]
[390976227,1760255837937,430.46402551,0.00027397,120]
[390976228,1760255850518,500.0,0.00027,120]
[390976229,1760255863824,500.0,0.00027,120]
[390976230,1760255878039,557.12455454,0.00027397,120]
[390976231,1760255896355,-544.05,0.00013699,2]
[390976232,1760255896378,-650.95,0.00013933,3]
[390976233,1760256197511,2000.0,0.00025876,120]
[390976234,1760256197650,2000.0,0.00027396,120]
[390976235,1760256203059,500.0,0.00025176,120]
[390976236,1760256203447,500.0,0.00026076,120]
[390976237,1760256203864,500.0,0.00026976,120]
[390976248,1760256415238,5000.0,0.00027397,120]
[390976249,1760256421830,5000.0,0.00027397,120]
[390976323,1760256453795,5000.0,0.00027397,120]
[390976324,1760256458668,5000.0,0.00027397,120]
[390976325,1760256464263,5000.0,0.00027397,120]
[390976326,1760256469438,5000.0,0.00027397,120]
[390976327,1760256559847,2000.0,0.00027397,120]
[390976345,1760256633187,-157.53,0.00013918,2]
[390976346,1760256633197,-15.05,0.00013933,3]
[390976347,1760256633207,-208.60195705,0.000145,2]
[390976348,1760256633219,-382.77195099,0.000145,2]
[390976349,1760256633229,-257.91778498,0.00014547,2]
[390976350,1760256633238,-1551.0,0.00014556,2]
[390976351,1760256633248,-265.0,0.00014596,2]
[390976352,1760256633257,-265.0,0.00014614,2]
[390976353,1760256633266,-265.0,0.00014617,2]
[390976354,1760256633276,-265.0,0.00014686,2]
[390976355,1760256633286,-1551.0,0.00014693,2]
[390976356,1760256633297,-363.77784,0.0001476,2]
[390976357,1760256633306,-265.0,0.0001481,2]
[390976358,1760256633315,-265.0,0.00014866,2]
[390976359,1760256633325,-322.6107,0.00014871,2]
[390976360,1760256633334,-1200.0,0.00014878,2]
[390976361,1760256633344,-300.0,0.00014878,2]
[390976362,1760256633352,-200.0,0.00014879,2]
[390976363,1760256633362,-500.0,0.0001488,2]
[390976364,1760256633371,-200.0,0.0001488,2]
[390976365,1760256633380,-5000.0,0.0001488,2]
[390976366,1760256633390,-299.77844623,0.0001488,2]
[390976367,1760256633404,-691.64490956,0.0001488,2]
[390976368,1760256633417,-700.66287959,0.0001488,2]
[390976369,1760256633427,-13.58327839,0.0001488,2]
[390976370,1760256633440,-273.64475913,0.0001488,2]
[390976371,1760256633450,-161.52240372,0.0001488,2]
[390976372,1760256633461,-128.74067286,0.00014881,2]
[390976373,1760256633474,-742.81520405,0.00014881,2]
[390976374,1760256633487,-520.75191209,0.00014881,2]
[390976375,1760256633497,-1392.307789,0.00014882,2]
[390976376,1760256633507,-299.77844621,0.00014883,2]
[390976377,1760256633517,-161.52240366,0.00014883,2]
[390976378,1760256633529,-752.41791675,0.00014883,2]
[390976379,1760256633546,-300.58008161,0.00014883,2]
[390976380,1760256633557,-339.30979064,0.00014883,2]
[390976381,1760256633566,-1392.307789,0.00014884,2]
[390976382,1760256633576,-1392.307789,0.00014885,2]
[390976383,1760256633585,-299.77844621,0.00014886,2]
[390976384,1760256633596,-161.52240366,0.00014886,2]
[390976385,1760256633607,-150.0,0.00014886,2]
[390976386,1760256633617,-1392.307789,0.00014886,2]
[390976387,1760256633628,-1392.307789,0.00014887,2]
[390976388,1760256633639,-1392.307789,0.00014888,2]
[390976389,1760256633649,-299.77844621,0.00014889,2]
[390976390,1760256633661,-161.52240366,0.00014889,2]
[390976391,1760256633671,-1392.307789,0.00014889,2]
[390976392,1760256633681,-1392.307789,0.00014891,2]
[390976393,1760256633691,-299.77844621,0.00014891,2]
[390976394,1760256633701,-1392.307789,0.00014892,2]
[390976395,1760256633711,-1392.307789,0.00014893,2]
[390976396,1760256633720,-1392.307789,0.00014894,2]
[390976397,1760256633730,-649.86249955,0.00014894,2]
[390976398,1760256633741,-808.98184142,0.00014894,2]
[390976399,1760256633754,-1890.15465043,0.00014894,2]
[390976400,1760256633764,-3857.2187112,0.00014894,2]
[390976401,1760256633774,-299.77844621,0.00014894,2]
[390976402,1760256633789,-1392.307789,0.00014895,2]
[390976403,1760256633799,-1392.307789,0.00014896,2]
[390976404,1760256633809,-1392.307789,0.00014897,2]
[390976405,1760256633818,-3416.5116828,0.00014897,2]
[390976406,1760256633828,-1500.97009836,0.00014897,2]
[390976407,1760256633839,-497.75,0.00014897,2]
[390976417,1760256639873,-161.52240366,0.00014891,2]
[390976418,1760256639883,-161.52240366,0.00014894,2]
[390976419,1760256639892,-198.44377318,0.00014897,2]
[390976548,1760256642865,-790.0,0.00014897,2]
[390976549,1760256642896,-448.88,0.00014897,2]
[390976556,1760256645838,-482.60129016,0.00014897,2]
[390976557,1760256645848,-161.52240366,0.00014897,2]
[390976558,1760256645857,-1392.307789,0.00014898,2]
[390976559,1760256645867,-1392.307789,0.00014899,2]
[390976560,1760256645876,-1503.99078465,0.000149,2]
[390976561,1760256646074,-6653.6778089,0.000149,2]
[390976678,1760256707433,2000.0,0.00027397,120]
[390976679,1760256714147,2000.0,0.0002739,120]
[390976684,1760256794079,2000.0,0.00025876,120]
[390976685,1760256794516,566.87571,0.00027396,120]
[390976689,1760256868559,2000.0,0.00027397,120]
[390976690,1760257060471,200.0,0.00027397,120]
[390977620,1760257249283,2000.0,0.00027397,120]
[390977621,1760257334744,2000.0,0.00027397,120]
[390977622,1760257382532,1821.196,0.00027397,120]
[390977623,1760257398947,500.0,0.00025249,120]
[390977624,1760257399236,500.0,0.00026222,120]
[390977625,1760257399664,500.0,0.00027195,120]
[390977626,1760257421618,1000.0,0.0002739,120]
[390977627,1760257458108,2000.0,0.00027397,120]
[390977635,1760257568023,15491.1588893,0.0002739,120]
[390977636,1760257578875,-250.0,0.00013951,7]
[390977673,1760257775027,375.2,0.00027397,120]
[390977706,1760257832407,-1600.0,0.00013899,2]
[390977707,1760257832418,-1200.0,0.00013999,2]
[390977708,1760257832428,-8597.19258559,0.00014,2]
[390977709,1760257832470,-1697.27425521,0.00014,2]
[390977710,1760257832507,-1090.0,0.00014,2]
[390977711,1760257832522,-3797.35457578,0.00014,2]
[390977714,1760257838199,-2318.17858342,0.00014,2]
[390977715,1760257838208,-3143.69314815,0.00014,2]
[390977716,1760257838218,-303.1482,0.0001475,2]
[390977717,1760257838231,-500.0,0.00014786,2]
[390977718,1760257838240,-200.0,0.00014786,2]
[390977719,1760257838253,-199.85229748,0.00014793,2]
[390977720,1760257838263,-154.70086548,0.000148,2]
[390977721,1760257838273,-154.70086544,0.00014813,2]
[390977722,1760257838283,-161.52240366,0.00014816,2]
[390977723,1760257838292,-154.70086544,0.00014825,2]
[390977725,1760257838302,-154.70086544,0.00014838,2]
[390977727,1760257838312,-199.85229747,0.00014847,2]
[390977729,1760257838321,-5000.0,0.0001485,2]
[390977731,1760257838330,-154.70086544,0.0001485,2]
[390977733,1760257838340,-1122.10864699,0.0001485,2]
[390977735,1760257838350,-154.70086544,0.00014863,2]
[390977737,1760257838360,-257.91778498,0.00014871,2]
[390977740,1760257838371,-154.70086544,0.00014875,2]
[390977741,1760257838381,-151.0,0.00014877,2]
[390977743,1760257838390,-151.0,0.00014877,2]
[390977744,1760257838399,-150.0,0.00014877,2]
[390977746,1760257838409,-500.0,0.00014877,2]
[390977748,1760257838419,-500.0,0.00014877,2]
[390977750,1760257838429,-452.54643812,0.00014877,2]
[390977752,1760257838438,-182.38,0.00014878,2]
[390977754,1760257838448,-1195.84453246,0.0001488,2]
[390977757,1760257838465,-1118.6,0.0001488,2]
[390977762,1760257838501,-360.93055809,0.0001488,2]
[390977902,1760257839855,-4072.36108811,0.0001488,2]
[390977904,1760257839868,-3321.47916256,0.0001488,2]
[390977918,1760257840130,-8801.70180557,0.0001488,2]
[390977920,1760257840141,-8947.21879473,0.0001488,2]
[390977922,1760257840152,-8943.78386462,0.0001488,2]
[390977925,1760257840163,-9077.54866152,0.0001488,2]
[390977927,1760257840173,-8943.84023489,0.0001488,2]
[390978180,1760257842853,-10484.6321933,0.00014673,2]
[390978182,1760257842864,-56173.01690943,0.0001488,2]
[390978184,1760257842878,-25186.3396482,0.0001488,2]
[390978186,1760257842890,-496.95288999,0.0001488,2]
[390978195,1760257842964,-367.9458638,0.0001488,2]
[390978222,1760257845965,-6607.6895439,0.0001488,2]
[390978223,1760257846077,-270.81329954,0.0001488,2]
[390978224,1760257846135,-5177.71860899,0.0001488,2]
[390978242,1760257941713,2848.58498312,0.00027397,120]
[390978245,1760258048137,500.0,0.0002739,120]
[390978246,1760258076431,1000.0,0.0002739,120]
[390978249,1760258103361,1000.0,0.0002739,120]
[390978250,1760258128602,1000.0,0.0002739,120]
[390978251,1760258152916,1000.0,0.0002739,120]
[390978258,1760258281946,1000.0,0.00027397,120]
[390978259,1760258287467,1000.0,0.00027397,120]
[390978260,1760258293410,1000.0,0.00027397,120]
[390978261,1760258300984,203.16,6.951e-05,2]
[390978262,1760258307754,1002.0,0.00027397,120]
[390978263,1760258314448,1000.0,0.00027397,120]
[390978266,1760258320927,1000.0,0.00027397,120]
[390978267,1760258327518,1000.0,0.00027397,120]
[390978268,1760258340144,1000.0,0.00027397,120]
[390978269,1760258358119,1000.0340687,0.00027397,120]
[390978274,1760258409022,1981.65072787,0.00027397,120]
[390978277,1760258479589,800.0,0.00027397,120]
[390978278,1760258505777,150.0,0.00012,2]
[390978281,1760258537702,800.0,0.00027397,120]
[390978282,1760258561830,800.0,0.00027397,120]
[390978283,1760258576253,800.0,0.00027397,120]
[390978284,1760258601234,500.0,0.00025347,120]
[390978285,1760258601638,500.0,0.00026417,120]
[390978286,1760258602017,500.0,0.00027396,120]
[390978287,1760258611317,800.0,0.00027397,120]
[390978288,1760258635660,800.0,0.00027397,120]
[390978291,1760258650243,800.0,0.00027397,120]
[390978292,1760258661945,800.0,0.00027397,120]
[390978293,1760258675384,800.0,0.00027397,120]
[390978294,1760258688736,800.0,0.00027397,120]
[390978295,1760258699624,800.0,0.00027397,120]
[390978298,1760258719688,800.0,0.00027397,120]
[390978299,1760258730435,800.0,0.00027397,120]
[390978300,1760258742831,800.0,0.00027397,120]
[390978306,1760258756764,800.0,0.00027397,120]
[390978307,1760258766898,800.0,0.00027397,120]
[390978308,1760258779323,800.0,0.00027397,120]
[390978309,1760258787829,800.0,0.00027397,120]
[390978310,1760258810872,800.0,0.00027397,120]
[390978311,1760258822430,800.0,0.00027397,120]
[390978312,1760258841416,315.0,0.00027397,120]
[390978395,1760258881565,157.0,0.00027397,120]
[390978396,1760258904947,157.76877893,0.00027397,120]
[390978397,1760258958718,1000.0,0.00027,120]
[390978398,1760258970895,1000.0,0.00027,120]
[390978462,1760259033384,-516.84,0.00013699,2]
[390978463,1760259033394,-4273.15170236,0.00013699,2]
[390978464,1760259033403,-156.31,0.0001382,2]
[390978465,1760259033412,-200.0,0.00013864,2]
[390978466,1760259033421,-250.0,0.00013879,2]
[390978467,1760259033430,-666.0,0.00013886,3]
[390978468,1760259033440,-203.16,0.00013903,2]
[390978469,1760259033450,-167.11,0.00014306,2]
[390978470,1760259033459,-787.46733208,0.00014533,2]
[390978471,1760259033469,-169.0,0.0001458,2]
[390978472,1760259033479,-290.96,0.000146,2]
[390978473,1760259033489,-1200.0,0.00014687,2]
[390978474,1760259033499,-783.59401941,0.00014688,2]
[390978475,1760259033509,-191.0,0.00014697,2]
[390978476,1760259033518,-1250.0,0.00014716,2]
[390978477,1760259033527,-252.6235,0.0001473,2]
[390978478,1760259033536,-1052.7014404,0.00014759,2]
[390978479,1760259033545,-1316.702085,0.00014759,2]
[390978480,1760259033555,-500.0,0.0001476,2]
[390978481,1760259033960,-1250.0,0.0001478,2]
[390978482,1760259033970,-2087.9055,0.0001478,2]
[390978483,1760259033979,-7590.15906062,0.00014784,2]
[390978484,1760259033988,-257.91778498,0.00014784,2]
[390978485,1760259033997,-500.0,0.00014786,2]
[390978486,1760259034007,-200.0,0.00014786,2]
[390978487,1760259034015,-194.09138864,0.000148,2]
[390978488,1760259034024,-156.17450485,0.000148,2]
[390978489,1760259034033,-215.36320489,0.000148,2]
[390978490,1760259034043,-1690.1877,0.000148,2]
[390978491,1760259034051,-187.54936432,0.000148,2]
[390978492,1760259034061,-489.74589376,0.000148,2]
[390978493,1760259034073,-508.23371752,0.000148,2]
[390978494,1760259034083,-215.36320489,0.00014811,2]
[390978495,1760259034092,-151.0,0.00014813,2]
[390978496,1760259034101,-1000.0,0.00014816,2]
[390978497,1760259034111,-215.36320489,0.00014822,2]
[390978498,1760259034120,-215.36320489,0.00014833,2]
[390978499,1760259034130,-997.97961127,0.0001484,2]
[390978500,1760259034139,-154.6484515,0.00014841,2]
[390978501,1760259034148,-322.6107,0.00014841,2]
[390978502,1760259034157,-215.36320489,0.00014844,2]
[390978503,1760259034166,-19464.7394,0.0001485,2]
[390978504,1760259034176,-1000.0,0.0001485,2]
[390978505,1760259034185,-194.28736418,0.0001485,2]
[390978506,1760259034195,-215.36320489,0.00014856,2]
[390978507,1760259034204,-215.36320489,0.00014867,2]
[390978508,1760259034213,-501.46478111,0.0001487,2]
[390978509,1760259034222,-252.6235,0.0001487,2]
[390978510,1760259034232,-151.0,0.00014877,2]
[390978511,1760259034241,-153.77368821,0.00014877,2]
[390978512,1760259034250,-215.36320489,0.00014878,2]
[390978513,1760259034259,-42416.70829085,0.0001488,2]
[390978514,1760259034270,-400.0,0.0001488,2]
[390978518,1760259037957,-2000.0,0.00013819,2]
[390978519,1760259037967,-26846.32997306,0.0001488,2]
[390978520,1760259037977,-5000.0,0.0001488,2]
[390978521,1760259037987,-997.97961127,0.0001488,2]
[390978522,1760259037997,-1239.5638778,0.00014888,2]
[390978523,1760259038006,-215.36320489,0.00014889,2]
[390978524,1760259038016,-873.3,0.00014889,2]
[390978525,1760259038027,-873.3,0.00014889,2]
[390978526,1760259038037,-29479.8271641,0.00014893,2]
[390978527,1760259038047,-151.570155,0.00014893,2]
[390978528,1760259038057,-151.0,0.00014893,2]
[390978529,1760259038067,-151.0,0.00014893,2]
[390978530,1760259038076,-151.0,0.00014893,2]
[390978531,1760259038085,-151.0,0.00014893,2]
[390978532,1760259038095,-151.0,0.00014893,2]
[390978533,1760259038109,-151.0,0.00014893,2]
[390978534,1760259038126,-186.35125,0.00014893,2]
[390978535,1760259038136,-151.0,0.00014893,2]
[390978536,1760259038146,-246.66567,0.00014893,2]
[390978537,1760259038156,-151.0,0.00014893,2]
[390978538,1760259038166,-151.0,0.00014893,2]
[390978539,1760259038178,-250.731744,0.00014893,2]
[390978540,1760259038188,-151.0,0.00014893,2]
[390978541,1760259038198,-151.0,0.00014893,2]
[390978542,1760259038208,-151.0,0.00014893,2]
[390978543,1760259038218,-151.762003,0.00014893,2]
[390978544,1760259038229,-151.0,0.00014893,2]
[390978545,1760259038238,-151.0,0.00014893,2]
[390978546,1760259038248,-151.0,0.00014893,2]
[390978547,1760259038258,-151.0,0.00014893,2]
[390978548,1760259038267,-151.0,0.00014893,2]
[390978549,1760259038277,-152.146027,0.00014893,2]
[390978550,1760259038286,-151.731504,0.00014893,2]
[390978551,1760259038296,-281.778013,0.00014893,2]
[390978552,1760259038306,-151.0,0.00014893,2]
[390978553,1760259038315,-151.0,0.00014893,2]
[390978554,1760259038324,-151.0,0.00014893,2]
[390978555,1760259038334,-151.0,0.00014893,2]
[390978556,1760259038343,-151.0,0.00014893,2]
[390978557,1760259038353,-151.0,0.00014893,2]
[390978558,1760259038362,-151.0,0.00014893,2]
[390978559,1760259038372,-151.0,0.00014893,2]
[390978560,1760259038381,-151.0,0.00014893,2]
[390978561,1760259038391,-151.0,0.00014893,2]
[390978562,1760259038400,-151.0,0.00014893,2]
[390978563,1760259038409,-151.0,0.00014893,2]
[390978564,1760259038419,-151.0,0.00014893,2]
[390978565,1760259038429,-151.0,0.00014893,2]
[390978566,1760259038439,-230.707032,0.00014893,2]
[390978568,1760259038449,-180.0,0.00014897,2]
[390978570,1760259038458,-156.0653844,0.00014897,2]
[390978572,1760259038467,-1392.0,0.00014899,2]
[390978574,1760259038476,-32161.5483722,0.00014899,2]
[390978576,1760259038486,-151.0,0.00014899,2]
[390978578,1760259038495,-151.0,0.00014899,2]
[390978580,1760259038504,-151.0,0.00014899,2]
[390978582,1760259038513,-151.0,0.00014899,2]
[390978584,1760259038524,-151.0,0.00014899,2]
[390978586,1760259038533,-151.0,0.00014899,2]
[390978588,1760259038542,-151.0,0.00014899,2]
[390978590,1760259038552,-151.0,0.00014899,2]
[390978592,1760259038561,-226.304221,0.00014899,2]
[390978594,1760259038570,-151.545498,0.00014899,2]
[390978596,1760259038585,-151.0,0.00014899,2]
[390978598,1760259038595,-273.179033,0.00014899,2]
[390978599,1760259038604,-151.0,0.00014899,2]
[390978600,1760259038614,-152.287119,0.00014899,2]
[390978601,1760259038624,-224.33538662,0.00014899,2]
[390978602,1760259038633,-500.0,0.00014899,2]
[390978603,1760259038644,-286.28074266,0.00014899,2]
[390978604,1760259038654,-265.52506285,0.00014899,2]
[390978605,1760259038665,-488.5496145,0.00014899,2]
[390978606,1760259038674,-213671.63440234,0.000149,2]
[390978607,1760259040021,-400.96061724,0.000149,2]
[390978608,1760259040129,-57682.70699533,0.000149,2]
[390978609,1760259040140,-38513.48725284,0.000149,2]
[390978610,1760259040152,-20134.28032468,0.000149,2]
[390978611,1760259040163,-45058.0900164,0.000149,2]
[390978612,1760259040295,-306.069,0.000149,2]
[390978626,1760259043081,-500.0,0.00014821,2]
[390978627,1760259043091,-154.345197,0.00014821,2]
[390978628,1760259043102,-14125.07053746,0.000149,2]
[390978629,1760259043113,-277.1515,0.000149,2]
[390978630,1760259043124,-13453.47926155,0.000149,2]
[390978634,1760259045994,-344.5,0.00014889,2]
[390978635,1760259046004,-150.11771879,0.0001489,2]
[390978636,1760259046255,-194.38228121,0.0001489,2]
[390978637,1760259046266,-344.5,0.0001489,2]
[390978638,1760259046276,-10870.52131002,0.000149,2]
[390978645,1760259199365,500.0,0.00025319,120]
[390978646,1760259199871,500.0,0.00026362,120]
[390978647,1760259200337,500.0,0.00027396,120]
[390978648,1760259319238,-151.34179135,0.00013925,2]
[390978649,1760259393589,-193.55820865,0.00013925,2]
[390978650,1760259393612,-92.96404159,0.00014664,2]
[390978651,1760259396591,-165.43325175,0.00014664,2]
[390978652,1760259575187,6400.2670394,0.00027,120]
[390978653,1760259666431,-200000.0,0.00028972,120]
[390978654,1760259666460,-200000.0,0.00028972,120]
[390978655,1760259666488,-200000.0,0.00028972,120]
[390978656,1760259666516,-159706.42,0.00028972,120]
[390978657,1760259666543,-50000.0,0.00028972,120]
[390978658,1760259666572,-31116.64,0.00028972,120]
[390978659,1760259666598,-728.50219851,0.00028972,120]
[390978660,1760259666623,-150.0,0.00028972,30]
[390978661,1760259666649,-1000.0,0.00028972,120]
[390978662,1760259666674,-1000.0,0.00028972,30]
[390978663,1760259666700,-1000.0,0.00028972,60]
[390978664,1760259666725,-1000.0,0.00028972,30]
[390978665,1760259666751,-779.05815557,0.00028972,60]
[390978666,1760259666778,-214.3,0.00028972,30]
[390978667,1760259666808,-50000.0,0.00028972,30]
[390978668,1760259666835,-50000.0,0.00028972,31]
[390978669,1760259666865,-50000.0,0.00028972,32]
[390978670,1760259666892,-50000.0,0.00028972,33]
[390978671,1760259666921,-50000.0,0.00028972,34]
[390978672,1760259666948,-50000.0,0.00028972,35]
[390978673,1760259666976,-50000.0,0.00028972,36]
[390978674,1760259667004,-50000.0,0.00028972,37]
[390978675,1760259667032,-50000.0,0.00028972,38]
[390978676,1760259667059,-50000.0,0.00028972,39]
[390978677,1760259667084,-367.76775706,0.00028972,60]
[390978678,1760259667109,-357.43834208,0.00028972,120]
[390978679,1760259667136,-456.587002,0.00028972,91]
[390978680,1760259667165,-467.73063445,0.00028972,120]
[390978681,1760259667191,-677.14946565,0.00028972,120]
[390978682,1760259667218,-181.59842653,0.00028972,120]
[390978683,1760259667245,-310.599949,0.00028972,30]
[390978684,1760259667271,-243.89584619,0.00028972,30]
[390978685,1760259667297,-2062.22205478,0.00028972,120]
[390978686,1760259667322,-620.0,0.00028972,30]
[390978687,1760259667347,-207.03229654,0.00028972,30]
[390978688,1760259667372,-903.181787,0.00028972,120]
[390978689,1760259667396,-859.73401859,0.00028972,90]
[390978690,1760259667421,-433.81875422,0.00028972,120]
[390978691,1760259667446,-519.40472592,0.00028972,30]
[390978692,1760259667472,-332.88054104,0.00028972,60]
[390978693,1760259667498,-185.25648095,0.00028972,120]
[390978694,1760259667527,-605.16546023,0.00028972,30]
[390978695,1760259667551,-2024.08246339,0.00028972,120]
[390978696,1760259667576,-516.80745898,0.00028972,120]
[390978697,1760259667600,-200.78960291,0.00028972,120]
[390978698,1760259667625,-5125.29379499,0.00028972,30]
[390978699,1760259667649,-2000.0,0.00028972,120]
[390978700,1760259667675,-214.3,0.00028972,30]
[390978701,1760259667713,-200.0,0.00028972,120]
[390978702,1760259667740,-3000.0,0.00028972,120]
[390978703,1760259667765,-18539.7319,0.00028972,30]
[390978704,1760259667794,-769107.0,0.00028972,120]
[390978705,1760259667820,-9554.0,0.00028972,30]
[390978706,1760259667845,-151.84479956,0.00028972,120]
[390978707,1760259667871,-298.60263676,0.00028972,120]
[390978708,1760259667897,-173.41354027,0.00028972,120]
[390978709,1760259667922,-156.34164327,0.00028972,30]
[390978710,1760259667950,-417.32314485,0.00028972,120]
[390978711,1760259668492,-257.02505561,0.00028972,60]
[390978712,1760259668519,-1930.5934064,0.00028972,30]
[390978713,1760259668545,-3210.39797097,0.00028972,120]
[390978714,1760259668572,-278.0,0.00028972,120]
[390978715,1760259668599,-12759.28,0.00028972,120]
[390978716,1760259668625,-193.57764818,0.00028972,120]
[390978717,1760259668652,-194.6671016,0.00028972,120]
[390978718,1760259668677,-1502.0,0.00028972,120]
[390978719,1760259668702,-2119.0,0.00028972,120]
[390978720,1760259668727,-770.3191498,0.00028972,30]
[390978721,1760259668759,-1481.24515609,0.00028972,30]
[390978722,1760259668793,-1346.967482,0.00028972,120]
[390978723,1760259668820,-845.65683404,0.00028972,120]
[390978724,1760259668851,-2039.10458714,0.00028972,120]
[390978725,1760259668881,-727.71804473,0.00028972,120]
[390978726,1760259668909,-293.032816,0.00028972,60]